Workbook

Sheet स्कोर ट्रैकर
B1: अपने स्कोर यहाँ दर्ज करें
C3: कक्षा | D3: प्रकार | E3: वर्णन | F3: स्कोर
C4: आधुनिक फ़्रेंच | D4: गृहकार्य | E4: WW II इतिहास | F4: 80%
C5: Java में उन्नत प्रोग्रामिंग | D5: मध्यावधि | F5: 75%
C6: स्पैनिश | D6: गृहकार्य | F6: 50%
C7: सैद्धांतिक भौतिकी | D7: गृहकार्य | F7: 95%
C8: आधुनिक फ़्रेंच | D8: गृहकार्य | E8: WW I इतिहास | F8: 90%
C9: आधुनिक फ़्रेंच | D9: गृहकार्य | E9: पृष्ठ 30 - 41 | F9: 80%
C10: संरचना | D10: निबंध | E10: प्रबोधन पत्र | F10: 95%
C11: गणित 1 | D11: गृहकार्य | E11: पृष्ठ 21 और 26 | F11: 80%
C12: गणित 2 | D12: गृहकार्य | E12: पृष्ठ 15 और 18 | F12: 85%
C13: गणित 1 | D13: गृहकार्य | E13: पृष्ठ 34 - 36 | F13: 80%
C14: गणित 2 | D14: क्विज़ | F14: 95%

Sheet आपका प्रदर्शन
B1: आपका प्रदर्शन
C3: कुल
C4: ="घंटे: "&SUM(tblClasses[क्रेडिट घंटे]) -> घंटे: 24 | D4: =AVERAGE(D7:D31) -> 81% | E4: =AVERAGE(E7:E31) -> 2.71 | F4: =SUM(F7:F31) -> 2.63 | G4: =IFERROR(HLOOKUP(D4,lstGPAMapping,2),"") -> B-
C6: कक्षाएँ | D6: % | E6: GPA | F6: wGPA | G6: वर्ण | H6: समग्री प्रदर्शन
C7: =परिकलन!C6 -> आधुनिक फ़्रेंच | D7: =परिकलन!AL6 -> 83% | E7: =परिकलन!AM6 -> 3.00 | F7: =IFERROR(E7*सेटिंग्स!D9/SUM(tblClasses[क्रेडिट घंटे]),"") -> 0.38 | G7: =परिकलन!AN6 -> B
C8: =परिकलन!C7 -> सैद्धांतिक भौतिकी | D8: =परिकलन!AL7 -> 95% | E8: =परिकलन!AM7 -> 4.00 | F8: =IFERROR(E8*सेटिंग्स!D10/SUM(tblClasses[क्रेडिट घंटे]),"") -> 0.50 | G8: =परिकलन!AN7 -> A
C9: =परिकलन!C8 -> गणित 1 | D9: =परिकलन!AL8 -> 80% | E9: =परिकलन!AM8 -> 2.67 | F9: =IFERROR(E9*सेटिंग्स!D11/SUM(tblClasses[क्रेडिट घंटे]),"") -> 0.45 | G9: =परिकलन!AN8 -> B-
C10: =परिकलन!C9 -> गणित 2 | D10: =परिकलन!AL9 -> 89% | E10: =परिकलन!AM9 -> 3.33 | F10: =IFERROR(E10*सेटिंग्स!D12/SUM(tblClasses[क्रेडिट घंटे]),"") -> 0.56 | G10: =परिकलन!AN9 -> B+
C11: =परिकलन!C10 -> Java में उन्नत प्रोग्रामिंग | D11: =परिकलन!AL10 -> 75% | E11: =परिकलन!AM10 -> 2.00 | F11: =IFERROR(E11*सेटिंग्स!D13/SUM(tblClasses[क्रेडिट घंटे]),"") -> 0.42 | G11: =परिकलन!AN10 -> C
C12: =परिकलन!C11 -> स्पैनिश | D12: =परिकलन!AL11 -> 50% | E12: =परिकलन!AM11 -> 0.00 | F12: =IFERROR(E12*सेटिंग्स!D14/SUM(tblClasses[क्रेडिट घंटे]),"") -> 0.00 | G12: =परिकलन!AN11 -> F
C13: =परिकलन!C12 -> संरचना | D13: =परिकलन!AL12 -> 95% | E13: =परिकलन!AM12 -> 4.00 | F13: =IFERROR(E13*सेटिंग्स!D15/SUM(tblClasses[क्रेडिट घंटे]),"") -> 0.33 | G13: =परिकलन!AN12 -> A
C14: =परिकलन!C13 ->  | D14: =परिकलन!AL13 ->  | E14: =परिकलन!AM13 ->  | F14: =IFERROR(E14*सेटिंग्स!D16/SUM(tblClasses[क्रेडिट घंटे]),"") ->  | G14: =परिकलन!AN13 -> 
C15: =परिकलन!C14 ->  | D15: =परिकलन!AL14 ->  | E15: =परिकलन!AM14 ->  | F15: =IFERROR(E15*सेटिंग्स!D17/SUM(tblClasses[क्रेडिट घंटे]),"") ->  | G15: =परिकलन!AN14 -> 
C16: =परिकलन!C15 ->  | D16: =परिकलन!AL15 ->  | E16: =परिकलन!AM15 ->  | F16: =IFERROR(E16*सेटिंग्स!D18/SUM(tblClasses[क्रेडिट घंटे]),"") ->  | G16: =परिकलन!AN15 -> 
C17: =परिकलन!C16 ->  | D17: =परिकलन!AL16 ->  | E17: =परिकलन!AM16 ->  | F17: =IFERROR(E17*सेटिंग्स!D19/SUM(tblClasses[क्रेडिट घंटे]),"") ->  | G17: =परिकलन!AN16 -> 
C18: =परिकलन!C17 ->  | D18: =परिकलन!AL17 ->  | E18: =परिकलन!AM17 ->  | F18: =IFERROR(E18*सेटिंग्स!D20/SUM(tblClasses[क्रेडिट घंटे]),"") ->  | G18: =परिकलन!AN17 -> 
C19: =परिकलन!C18 ->  | D19: =परिकलन!AL18 ->  | E19: =परिकलन!AM18 ->  | F19: =IFERROR(E19*सेटिंग्स!D21/SUM(tblClasses[क्रेडिट घंटे]),"") ->  | G19: =परिकलन!AN18 -> 
C20: =परिकलन!C19 ->  | D20: =परिकलन!AL19 ->  | E20: =परिकलन!AM19 ->  | F20: =IFERROR(E20*सेटिंग्स!D22/SUM(tblClasses[क्रेडिट घंटे]),"") ->  | G20: =परिकलन!AN19 -> 
C21: =परिकलन!C20 ->  | D21: =परिकलन!AL20 ->  | E21: =परिकलन!AM20 ->  | F21: =IFERROR(E21*सेटिंग्स!D23/SUM(tblClasses[क्रेडिट घंटे]),"") ->  | G21: =परिकलन!AN20 -> 
C22: =परिकलन!C21 ->  | D22: =परिकलन!AL21 ->  | E22: =परिकलन!AM21 ->  | F22: =IFERROR(E22*सेटिंग्स!D24/SUM(tblClasses[क्रेडिट घंटे]),"") ->  | G22: =परिकलन!AN21 -> 
C23: =परिकलन!C22 ->  | D23: =परिकलन!AL22 ->  | E23: =परिकलन!AM22 ->  | F23: =IFERROR(E23*सेटिंग्स!D25/SUM(tblClasses[क्रेडिट घंटे]),"") ->  | G23: =परिकलन!AN22 -> 
C24: =परिकलन!C23 ->  | D24: =परिकलन!AL23 ->  | E24: =परिकलन!AM23 ->  | F24: =IFERROR(E24*सेटिंग्स!D26/SUM(tblClasses[क्रेडिट घंटे]),"") ->  | G24: =परिकलन!AN23 -> 
C25: =परिकलन!C24 ->  | D25: =परिकलन!AL24 ->  | E25: =परिकलन!AM24 ->  | F25: =IFERROR(E25*सेटिंग्स!D27/SUM(tblClasses[क्रेडिट घंटे]),"") ->  | G25: =परिकलन!AN24 -> 
C26: =परिकलन!C25 ->  | D26: =परिकलन!AL25 ->  | E26: =परिकलन!AM25 ->  | F26: =IFERROR(E26*सेटिंग्स!D28/SUM(tblClasses[क्रेडिट घंटे]),"") ->  | G26: =परिकलन!AN25 -> 
C27: =परिकलन!C26 ->  | D27: =परिकलन!AL26 ->  | E27: =परिकलन!AM26 ->  | F27: =IFERROR(E27*सेटिंग्स!D29/SUM(tblClasses[क्रेडिट घंटे]),"") ->  | G27: =परिकलन!AN26 -> 
C28: =परिकलन!C27 ->  | D28: =परिकलन!AL27 ->  | E28: =परिकलन!AM27 ->  | F28: =IFERROR(E28*सेटिंग्स!D30/SUM(tblClasses[क्रेडिट घंटे]),"") ->  | G28: =परिकलन!AN27 -> 
C29: =परिकलन!C28 ->  | D29: =परिकलन!AL28 ->  | E29: =परिकलन!AM28 ->  | F29: =IFERROR(E29*सेटिंग्स!D31/SUM(tblClasses[क्रेडिट घंटे]),"") ->  | G29: =परिकलन!AN28 -> 
C30: =परिकलन!C29 ->  | D30: =परिकलन!AL29 ->  | E30: =परिकलन!AM29 ->  | F30: =IFERROR(E30*सेटिंग्स!D32/SUM(tblClasses[क्रेडिट घंटे]),"") ->  | G30: =परिकलन!AN29 -> 
C31: =परिकलन!C30 ->  | D31: =परिकलन!AL30 ->  | E31: =परिकलन!AM30 ->  | F31: =IFERROR(E31*सेटिंग्स!D33/SUM(tblClasses[क्रेडिट घंटे]),"") ->  | G31: =परिकलन!AN30 -> 

Sheet सेटिंग्स
B1: सेटिंग्स
C2: स्कोर और GPA मैपिंग
C3: प्रतिशत | D3: 0% | E3: 60% | F3: 63% | G3: 67% | H3: 70% | I3: 73% | J3: 77% | K3: 80% | L3: 83% | M3: 87% | N3: 90% | O3: 93% | P3: 97%
C4: लेटर ग्रेड | D4: F | E4: D- | F4: D | G4: D+ | H4: C- | I4: C | J4: C+ | K4: B- | L4: B | M4: B+ | N4: A- | O4: A | P4: A+
C5: GPA | D5: 0 | E5: 0.67 | F5: 1 | G5: 1.33 | H5: 1.67 | I5: 2 | J5: 2.33 | K5: 2.67 | L5: 3 | M5: 3.33 | N5: 3.67 | O5: 4 | P5: 4
C7: 25 कक्षाओं तक के लिए भारित स्कोर
C8: आपके द्वारा ली जाने वाली कक्षाएँ | D8: क्रेडिट घंटे | E8: गृहकार्य | F8: निबंध | G8: क्विज़ | H8: प्रोजेक्ट | I8: मध्यावधि | J8: अंतिम परीक्षा | K8: अन्य | L8: % कुल
C9: आधुनिक फ़्रेंच | D9: 3.0 | E9: 10% | F9: 15% | G9: 15% | H9: 10% | I9: 20% | J9: 30% | L9: =SUM(tblClasses[[#This Row],[गृहकार्य]:[अन्य]]) -> 100%
C10: सैद्धांतिक भौतिकी | D10: 3.0 | E10: 15% | F10: 15% | G10: 10% | H10: 10% | I10: 15% | J10: 30% | K10: 5% | L10: =SUM(tblClasses[[#This Row],[गृहकार्य]:[अन्य]]) -> 100%
C11: गणित 1 | D11: 4.0 | E11: 10% | F11: 15% | G11: 15% | H11: 10% | I11: 20% | J11: 30% | L11: =SUM(tblClasses[[#This Row],[गृहकार्य]:[अन्य]]) -> 100%
C12: गणित 2 | D12: 4.0 | E12: 15% | F12: 15% | G12: 10% | H12: 10% | I12: 15% | J12: 30% | K12: 5% | L12: =SUM(tblClasses[[#This Row],[गृहकार्य]:[अन्य]]) -> 100%
C13: Java में उन्नत प्रोग्रामिंग | D13: 5.0 | E13: 15% | F13: 15% | G13: 10% | H13: 10% | I13: 20% | J13: 30% | L13: =SUM(tblClasses[[#This Row],[गृहकार्य]:[अन्य]]) -> 100%
C14: स्पैनिश | D14: 3.0 | E14: 10% | F14: 15% | G14: 17% | H14: 13% | I14: 20% | J14: 20% | K14: 5% | L14: =SUM(tblClasses[[#This Row],[गृहकार्य]:[अन्य]]) -> 100%
C15: संरचना | D15: 2.0 | E15: 15% | F15: 15% | G15: 12% | H15: 15% | I15: 15% | J15: 25% | K15: 3% | L15: =SUM(tblClasses[[#This Row],[गृहकार्य]:[अन्य]]) -> 100%

Sheet परिकलन (hidden)
B1: परिकलन
C2: यह कार्यपत्रक आपके ग्रेड्स और GPA का परिकलन प्रदान करता है और यह छुपा रहना चाहिए. इस पत्रक में किसी भी परिवर्तन से त्रुटियाँ आ सकती हैं.
C4: वर्तमान कक्षा सूची | D4: स्कोर (1 में से) | AC4: ग्रेड परिकलन
C5: कक्षा | D5: 1 | E5: 2 | F5: 3 | G5: 4 | H5: 5 | I5: 6 | J5: 7 | K5: 8 | L5: 9 | M5: 10 | N5: 11 | O5: 12 | P5: 13 | Q5: 14 | R5: 15 | S5: 16 | T5: 17 | U5: 18 | V5: 19 | W5: 20 | X5: 21 | Y5: 22 | Z5: 23 | AA5: 24 | AB5: 25 | AC5: =tblClasses[[#Headers],[गृहकार्य]] -> गृहकार्य | AD5: =tblClasses[[#Headers],[निबंध]] -> निबंध | AE5: =tblClasses[[#Headers],[क्विज़]] -> क्विज़ | AF5: =tblClasses[[#Headers],[प्रोजेक्ट]] -> प्रोजेक्ट | AG5: =tblClasses[[#Headers],[मध्यावधि]] -> मध्यावधि | AH5: =tblClasses[[#Headers],[अंतिम परीक्षा]] -> अंतिम परीक्षा | AI5: =tblClasses[[#Headers],[अन्य]] -> अन्य | AJ5: कुल | AK5: कुल संभव पॉइंट्स | AL5: कुल % | AM5: ग्रेड पॉइंट | AN5: लेटर ग्रेड
C6: =IF(सेटिंग्स!C9="","",सेटिंग्स!C9) -> आधुनिक फ़्रेंच | D6: =IFERROR(INDEX(tblClassScores[],MATCH($C6:$C30&D$5:AB$5,परिकलन!$C$33:$C$657,0),4),"") -> 80% | E6: 90% | F6: 80% | AC6: =IFERROR(AVERAGEIFS(tblClassScores[स्कोर],tblClassScores[कक्षा],परिकलन!$C6,tblClassScores[प्रकार],परिकलन!AC$5)*सेटिंग्स!E9,"") -> 0.08333333333 | AD6: =IFERROR(AVERAGEIFS(tblClassScores[स्कोर],tblClassScores[कक्षा],परिकलन!$C6,tblClassScores[प्रकार],परिकलन!AD$5)*सेटिंग्स!F9,"") ->  | AE6: =IFERROR(AVERAGEIFS(tblClassScores[स्कोर],tblClassScores[कक्षा],परिकलन!$C6,tblClassScores[प्रकार],परिकलन!AE$5)*सेटिंग्स!G9,"") ->  | AF6: =IFERROR(AVERAGEIFS(tblClassScores[स्कोर],tblClassScores[कक्षा],परिकलन!$C6,tblClassScores[प्रकार],परिकलन!AF$5)*सेटिंग्स!H9,"") ->  | AG6: =IFERROR(AVERAGEIFS(tblClassScores[स्कोर],tblClassScores[कक्षा],परिकलन!$C6,tblClassScores[प्रकार],परिकलन!AG$5)*सेटिंग्स!I9,"") ->  | AH6: =IFERROR(AVERAGEIFS(tblClassScores[स्कोर],tblClassScores[कक्षा],परिकलन!$C6,tblClassScores[प्रकार],परिकलन!AH$5)*सेटिंग्स!J9,"") ->  | AI6: =IFERROR(AVERAGEIFS(tblClassScores[स्कोर],tblClassScores[कक्षा],परिकलन!$C6,tblClassScores[प्रकार],परिकलन!AI$5)*सेटिंग्स!K9,"") ->  | AJ6: =SUM(AC6:AI6) -> 0.08333333333 | AK6: =SUMIFS(सेटिंग्स!E9:K9,परिकलन!AC6:AI6,">0") -> 0.1 | AL6: =IFERROR(AJ6/AK6,"") -> 83% | AM6: =IFERROR(HLOOKUP(AL6,lstGPAMapping,3),"") -> 3 | AN6: =IFERROR(HLOOKUP(AL6,lstGPAMapping,2),"") -> B
C7: =IF(सेटिंग्स!C10="","",सेटिंग्स!C10) -> सैद्धांतिक भौतिकी | D7: 95% | AC7: =IFERROR(AVERAGEIFS(tblClassScores[स्कोर],tblClassScores[कक्षा],परिकलन!$C7,tblClassScores[प्रकार],परिकलन!AC$5)*सेटिंग्स!E10,"") -> 0.1425 | AD7: =IFERROR(AVERAGEIFS(tblClassScores[स्कोर],tblClassScores[कक्षा],परिकलन!$C7,tblClassScores[प्रकार],परिकलन!AD$5)*सेटिंग्स!F10,"") ->  | AE7: =IFERROR(AVERAGEIFS(tblClassScores[स्कोर],tblClassScores[कक्षा],परिकलन!$C7,tblClassScores[प्रकार],परिकलन!AE$5)*सेटिंग्स!G10,"") ->  | AF7: =IFERROR(AVERAGEIFS(tblClassScores[स्कोर],tblClassScores[कक्षा],परिकलन!$C7,tblClassScores[प्रकार],परिकलन!AF$5)*सेटिंग्स!H10,"") ->  | AG7: =IFERROR(AVERAGEIFS(tblClassScores[स्कोर],tblClassScores[कक्षा],परिकलन!$C7,tblClassScores[प्रकार],परिकलन!AG$5)*सेटिंग्स!I10,"") ->  | AH7: =IFERROR(AVERAGEIFS(tblClassScores[स्कोर],tblClassScores[कक्षा],परिकलन!$C7,tblClassScores[प्रकार],परिकलन!AH$5)*सेटिंग्स!J10,"") ->  | AI7: =IFERROR(AVERAGEIFS(tblClassScores[स्कोर],tblClassScores[कक्षा],परिकलन!$C7,tblClassScores[प्रकार],परिकलन!AI$5)*सेटिंग्स!K10,"") ->  | AJ7: =SUM(AC7:AI7) -> 0.1425 | AK7: =SUMIFS(सेटिंग्स!E10:K10,परिकलन!AC7:AI7,">0") -> 0.15 | AL7: =IFERROR(AJ7/AK7,"") -> 95% | AM7: 4 | AN7: A
C8: =IF(सेटिंग्स!C11="","",सेटिंग्स!C11) -> गणित 1 | D8: 80% | E8: 80% | AC8: =IFERROR(AVERAGEIFS(tblClassScores[स्कोर],tblClassScores[कक्षा],परिकलन!$C8,tblClassScores[प्रकार],परिकलन!AC$5)*सेटिंग्स!E11,"") -> 0.08 | AD8: =IFERROR(AVERAGEIFS(tblClassScores[स्कोर],tblClassScores[कक्षा],परिकलन!$C8,tblClassScores[प्रकार],परिकलन!AD$5)*सेटिंग्स!F11,"") ->  | AE8: =IFERROR(AVERAGEIFS(tblClassScores[स्कोर],tblClassScores[कक्षा],परिकलन!$C8,tblClassScores[प्रकार],परिकलन!AE$5)*सेटिंग्स!G11,"") ->  | AF8: =IFERROR(AVERAGEIFS(tblClassScores[स्कोर],tblClassScores[कक्षा],परिकलन!$C8,tblClassScores[प्रकार],परिकलन!AF$5)*सेटिंग्स!H11,"") ->  | AG8: =IFERROR(AVERAGEIFS(tblClassScores[स्कोर],tblClassScores[कक्षा],परिकलन!$C8,tblClassScores[प्रकार],परिकलन!AG$5)*सेटिंग्स!I11,"") ->  | AH8: =IFERROR(AVERAGEIFS(tblClassScores[स्कोर],tblClassScores[कक्षा],परिकलन!$C8,tblClassScores[प्रकार],परिकलन!AH$5)*सेटिंग्स!J11,"") ->  | AI8: =IFERROR(AVERAGEIFS(tblClassScores[स्कोर],tblClassScores[कक्षा],परिकलन!$C8,tblClassScores[प्रकार],परिकलन!AI$5)*सेटिंग्स!K11,"") ->  | AJ8: 0.08 | AK8: =SUMIFS(सेटिंग्स!E11:K11,परिकलन!AC8:AI8,">0") -> 0.1 | AL8: 80% | AM8: 2.67 | AN8: B-
C9: =IF(सेटिंग्स!C12="","",सेटिंग्स!C12) -> गणित 2 | D9: 85% | E9: 95% | AC9: =IFERROR(AVERAGEIFS(tblClassScores[स्कोर],tblClassScores[कक्षा],परिकलन!$C9,tblClassScores[प्रकार],परिकलन!AC$5)*सेटिंग्स!E12,"") -> 0.1275 | AD9: =IFERROR(AVERAGEIFS(tblClassScores[स्कोर],tblClassScores[कक्षा],परिकलन!$C9,tblClassScores[प्रकार],परिकलन!AD$5)*सेटिंग्स!F12,"") ->  | AE9: =IFERROR(AVERAGEIFS(tblClassScores[स्कोर],tblClassScores[कक्षा],परिकलन!$C9,tblClassScores[प्रकार],परिकलन!AE$5)*सेटिंग्स!G12,"") -> 0.095 | AF9: =IFERROR(AVERAGEIFS(tblClassScores[स्कोर],tblClassScores[कक्षा],परिकलन!$C9,tblClassScores[प्रकार],परिकलन!AF$5)*सेटिंग्स!H12,"") ->  | AG9: =IFERROR(AVERAGEIFS(tblClassScores[स्कोर],tblClassScores[कक्षा],परिकलन!$C9,tblClassScores[प्रकार],परिकलन!AG$5)*सेटिंग्स!I12,"") ->  | AH9: =IFERROR(AVERAGEIFS(tblClassScores[स्कोर],tblClassScores[कक्षा],परिकलन!$C9,tblClassScores[प्रकार],परिकलन!AH$5)*सेटिंग्स!J12,"") ->  | AI9: =IFERROR(AVERAGEIFS(tblClassScores[स्कोर],tblClassScores[कक्षा],परिकलन!$C9,tblClassScores[प्रकार],परिकलन!AI$5)*सेटिंग्स!K12,"") ->  | AJ9: 0.2225 | AK9: =SUMIFS(सेटिंग्स!E12:K12,परिकलन!AC9:AI9,">0") -> 0.25 | AL9: 89% | AM9: 3.33 | AN9: B+
C10: =IF(सेटिंग्स!C13="","",सेटिंग्स!C13) -> Java में उन्नत प्रोग्रामिंग | D10: 75% | AC10: =IFERROR(AVERAGEIFS(tblClassScores[स्कोर],tblClassScores[कक्षा],परिकलन!$C10,tblClassScores[प्रकार],परिकलन!AC$5)*सेटिंग्स!E13,"") ->  | AD10: =IFERROR(AVERAGEIFS(tblClassScores[स्कोर],tblClassScores[कक्षा],परिकलन!$C10,tblClassScores[प्रकार],परिकलन!AD$5)*सेटिंग्स!F13,"") ->  | AE10: =IFERROR(AVERAGEIFS(tblClassScores[स्कोर],tblClassScores[कक्षा],परिकलन!$C10,tblClassScores[प्रकार],परिकलन!AE$5)*सेटिंग्स!G13,"") ->  | AF10: =IFERROR(AVERAGEIFS(tblClassScores[स्कोर],tblClassScores[कक्षा],परिकलन!$C10,tblClassScores[प्रकार],परिकलन!AF$5)*सेटिंग्स!H13,"") ->  | AG10: =IFERROR(AVERAGEIFS(tblClassScores[स्कोर],tblClassScores[कक्षा],परिकलन!$C10,tblClassScores[प्रकार],परिकलन!AG$5)*सेटिंग्स!I13,"") -> 0.15 | AH10: =IFERROR(AVERAGEIFS(tblClassScores[स्कोर],tblClassScores[कक्षा],परिकलन!$C10,tblClassScores[प्रकार],परिकलन!AH$5)*सेटिंग्स!J13,"") ->  | AI10: =IFERROR(AVERAGEIFS(tblClassScores[स्कोर],tblClassScores[कक्षा],परिकलन!$C10,tblClassScores[प्रकार],परिकलन!AI$5)*सेटिंग्स!K13,"") ->  | AJ10: 0.15 | AK10: =SUMIFS(सेटिंग्स!E13:K13,परिकलन!AC10:AI10,">0") -> 0.2 | AL10: 75% | AM10: 2 | AN10: C
C11: =IF(सेटिंग्स!C14="","",सेटिंग्स!C14) -> स्पैनिश | D11: 50% | AC11: =IFERROR(AVERAGEIFS(tblClassScores[स्कोर],tblClassScores[कक्षा],परिकलन!$C11,tblClassScores[प्रकार],परिकलन!AC$5)*सेटिंग्स!E14,"") -> 0.05 | AD11: =IFERROR(AVERAGEIFS(tblClassScores[स्कोर],tblClassScores[कक्षा],परिकलन!$C11,tblClassScores[प्रकार],परिकलन!AD$5)*सेटिंग्स!F14,"") ->  | AE11: =IFERROR(AVERAGEIFS(tblClassScores[स्कोर],tblClassScores[कक्षा],परिकलन!$C11,tblClassScores[प्रकार],परिकलन!AE$5)*सेटिंग्स!G14,"") ->  | AF11: =IFERROR(AVERAGEIFS(tblClassScores[स्कोर],tblClassScores[कक्षा],परिकलन!$C11,tblClassScores[प्रकार],परिकलन!AF$5)*सेटिंग्स!H14,"") ->  | AG11: =IFERROR(AVERAGEIFS(tblClassScores[स्कोर],tblClassScores[कक्षा],परिकलन!$C11,tblClassScores[प्रकार],परिकलन!AG$5)*सेटिंग्स!I14,"") ->  | AH11: =IFERROR(AVERAGEIFS(tblClassScores[स्कोर],tblClassScores[कक्षा],परिकलन!$C11,tblClassScores[प्रकार],परिकलन!AH$5)*सेटिंग्स!J14,"") ->  | AI11: =IFERROR(AVERAGEIFS(tblClassScores[स्कोर],tblClassScores[कक्षा],परिकलन!$C11,tblClassScores[प्रकार],परिकलन!AI$5)*सेटिंग्स!K14,"") ->  | AJ11: 0.05 | AK11: =SUMIFS(सेटिंग्स!E14:K14,परिकलन!AC11:AI11,">0") -> 0.1 | AL11: 50% | AM11: 0 | AN11: F
C12: =IF(सेटिंग्स!C15="","",सेटिंग्स!C15) -> संरचना | D12: 95% | AC12: =IFERROR(AVERAGEIFS(tblClassScores[स्कोर],tblClassScores[कक्षा],परिकलन!$C12,tblClassScores[प्रकार],परिकलन!AC$5)*सेटिंग्स!E15,"") ->  | AD12: =IFERROR(AVERAGEIFS(tblClassScores[स्कोर],tblClassScores[कक्षा],परिकलन!$C12,tblClassScores[प्रकार],परिकलन!AD$5)*सेटिंग्स!F15,"") -> 0.1425 | AE12: =IFERROR(AVERAGEIFS(tblClassScores[स्कोर],tblClassScores[कक्षा],परिकलन!$C12,tblClassScores[प्रकार],परिकलन!AE$5)*सेटिंग्स!G15,"") ->  | AF12: =IFERROR(AVERAGEIFS(tblClassScores[स्कोर],tblClassScores[कक्षा],परिकलन!$C12,tblClassScores[प्रकार],परिकलन!AF$5)*सेटिंग्स!H15,"") ->  | AG12: =IFERROR(AVERAGEIFS(tblClassScores[स्कोर],tblClassScores[कक्षा],परिकलन!$C12,tblClassScores[प्रकार],परिकलन!AG$5)*सेटिंग्स!I15,"") ->  | AH12: =IFERROR(AVERAGEIFS(tblClassScores[स्कोर],tblClassScores[कक्षा],परिकलन!$C12,tblClassScores[प्रकार],परिकलन!AH$5)*सेटिंग्स!J15,"") ->  | AI12: =IFERROR(AVERAGEIFS(tblClassScores[स्कोर],tblClassScores[कक्षा],परिकलन!$C12,tblClassScores[प्रकार],परिकलन!AI$5)*सेटिंग्स!K15,"") ->  | AJ12: 0.1425 | AK12: =SUMIFS(सेटिंग्स!E15:K15,परिकलन!AC12:AI12,">0") -> 0.15 | AL12: 95% | AM12: 4 | AN12: A
C13: =IF(सेटिंग्स!C16="","",सेटिंग्स!C16) ->  | AC13: =IFERROR(AVERAGEIFS(tblClassScores[स्कोर],tblClassScores[कक्षा],परिकलन!$C13,tblClassScores[प्रकार],परिकलन!AC$5)*सेटिंग्स!#REF!,"") ->  | AD13: =IFERROR(AVERAGEIFS(tblClassScores[स्कोर],tblClassScores[कक्षा],परिकलन!$C13,tblClassScores[प्रकार],परिकलन!AD$5)*सेटिंग्स!#REF!,"") ->  | AE13: =IFERROR(AVERAGEIFS(tblClassScores[स्कोर],tblClassScores[कक्षा],परिकलन!$C13,tblClassScores[प्रकार],परिकलन!AE$5)*सेटिंग्स!#REF!,"") ->  | AF13: =IFERROR(AVERAGEIFS(tblClassScores[स्कोर],tblClassScores[कक्षा],परिकलन!$C13,tblClassScores[प्रकार],परिकलन!AF$5)*सेटिंग्स!#REF!,"") ->  | AG13: =IFERROR(AVERAGEIFS(tblClassScores[स्कोर],tblClassScores[कक्षा],परिकलन!$C13,tblClassScores[प्रकार],परिकलन!AG$5)*सेटिंग्स!#REF!,"") ->  | AH13: =IFERROR(AVERAGEIFS(tblClassScores[स्कोर],tblClassScores[कक्षा],परिकलन!$C13,tblClassScores[प्रकार],परिकलन!AH$5)*सेटिंग्स!#REF!,"") ->  | AI13: =IFERROR(AVERAGEIFS(tblClassScores[स्कोर],tblClassScores[कक्षा],परिकलन!$C13,tblClassScores[प्रकार],परिकलन!AI$5)*सेटिंग्स!#REF!,"") ->  | AJ13: 0 | AK13: =SUMIFS(सेटिंग्स!E16:K16,परिकलन!AC13:AI13,">0") -> 0
C14: =IF(सेटिंग्स!C17="","",सेटिंग्स!C17) ->  | AC14: =IFERROR(AVERAGEIFS(tblClassScores[स्कोर],tblClassScores[कक्षा],परिकलन!$C14,tblClassScores[प्रकार],परिकलन!AC$5)*सेटिंग्स!#REF!,"") ->  | AD14: =IFERROR(AVERAGEIFS(tblClassScores[स्कोर],tblClassScores[कक्षा],परिकलन!$C14,tblClassScores[प्रकार],परिकलन!AD$5)*सेटिंग्स!#REF!,"") ->  | AE14: =IFERROR(AVERAGEIFS(tblClassScores[स्कोर],tblClassScores[कक्षा],परिकलन!$C14,tblClassScores[प्रकार],परिकलन!AE$5)*सेटिंग्स!#REF!,"") ->  | AF14: =IFERROR(AVERAGEIFS(tblClassScores[स्कोर],tblClassScores[कक्षा],परिकलन!$C14,tblClassScores[प्रकार],परिकलन!AF$5)*सेटिंग्स!#REF!,"") ->  | AG14: =IFERROR(AVERAGEIFS(tblClassScores[स्कोर],tblClassScores[कक्षा],परिकलन!$C14,tblClassScores[प्रकार],परिकलन!AG$5)*सेटिंग्स!#REF!,"") ->  | AH14: =IFERROR(AVERAGEIFS(tblClassScores[स्कोर],tblClassScores[कक्षा],परिकलन!$C14,tblClassScores[प्रकार],परिकलन!AH$5)*सेटिंग्स!#REF!,"") ->  | AI14: =IFERROR(AVERAGEIFS(tblClassScores[स्कोर],tblClassScores[कक्षा],परिकलन!$C14,tblClassScores[प्रकार],परिकलन!AI$5)*सेटिंग्स!#REF!,"") ->  | AJ14: 0 | AK14: =SUMIFS(सेटिंग्स!E17:K17,परिकलन!AC14:AI14,">0") -> 0
C15: =IF(सेटिंग्स!C18="","",सेटिंग्स!C18) ->  | AC15: =IFERROR(AVERAGEIFS(tblClassScores[स्कोर],tblClassScores[कक्षा],परिकलन!$C15,tblClassScores[प्रकार],परिकलन!AC$5)*सेटिंग्स!#REF!,"") ->  | AD15: =IFERROR(AVERAGEIFS(tblClassScores[स्कोर],tblClassScores[कक्षा],परिकलन!$C15,tblClassScores[प्रकार],परिकलन!AD$5)*सेटिंग्स!#REF!,"") ->  | AE15: =IFERROR(AVERAGEIFS(tblClassScores[स्कोर],tblClassScores[कक्षा],परिकलन!$C15,tblClassScores[प्रकार],परिकलन!AE$5)*सेटिंग्स!#REF!,"") ->  | AF15: =IFERROR(AVERAGEIFS(tblClassScores[स्कोर],tblClassScores[कक्षा],परिकलन!$C15,tblClassScores[प्रकार],परिकलन!AF$5)*सेटिंग्स!#REF!,"") ->  | AG15: =IFERROR(AVERAGEIFS(tblClassScores[स्कोर],tblClassScores[कक्षा],परिकलन!$C15,tblClassScores[प्रकार],परिकलन!AG$5)*सेटिंग्स!#REF!,"") ->  | AH15: =IFERROR(AVERAGEIFS(tblClassScores[स्कोर],tblClassScores[कक्षा],परिकलन!$C15,tblClassScores[प्रकार],परिकलन!AH$5)*सेटिंग्स!#REF!,"") ->  | AI15: =IFERROR(AVERAGEIFS(tblClassScores[स्कोर],tblClassScores[कक्षा],परिकलन!$C15,tblClassScores[प्रकार],परिकलन!AI$5)*सेटिंग्स!#REF!,"") ->  | AJ15: 0 | AK15: =SUMIFS(सेटिंग्स!E18:K18,परिकलन!AC15:AI15,">0") -> 0
C16: =IF(सेटिंग्स!C19="","",सेटिंग्स!C19) ->  | AC16: =IFERROR(AVERAGEIFS(tblClassScores[स्कोर],tblClassScores[कक्षा],परिकलन!$C16,tblClassScores[प्रकार],परिकलन!AC$5)*सेटिंग्स!#REF!,"") ->  | AD16: =IFERROR(AVERAGEIFS(tblClassScores[स्कोर],tblClassScores[कक्षा],परिकलन!$C16,tblClassScores[प्रकार],परिकलन!AD$5)*सेटिंग्स!#REF!,"") ->  | AE16: =IFERROR(AVERAGEIFS(tblClassScores[स्कोर],tblClassScores[कक्षा],परिकलन!$C16,tblClassScores[प्रकार],परिकलन!AE$5)*सेटिंग्स!#REF!,"") ->  | AF16: =IFERROR(AVERAGEIFS(tblClassScores[स्कोर],tblClassScores[कक्षा],परिकलन!$C16,tblClassScores[प्रकार],परिकलन!AF$5)*सेटिंग्स!#REF!,"") ->  | AG16: =IFERROR(AVERAGEIFS(tblClassScores[स्कोर],tblClassScores[कक्षा],परिकलन!$C16,tblClassScores[प्रकार],परिकलन!AG$5)*सेटिंग्स!#REF!,"") ->  | AH16: =IFERROR(AVERAGEIFS(tblClassScores[स्कोर],tblClassScores[कक्षा],परिकलन!$C16,tblClassScores[प्रकार],परिकलन!AH$5)*सेटिंग्स!#REF!,"") ->  | AI16: =IFERROR(AVERAGEIFS(tblClassScores[स्कोर],tblClassScores[कक्षा],परिकलन!$C16,tblClassScores[प्रकार],परिकलन!AI$5)*सेटिंग्स!#REF!,"") ->  | AJ16: 0 | AK16: =SUMIFS(सेटिंग्स!E19:K19,परिकलन!AC16:AI16,">0") -> 0
C17: =IF(सेटिंग्स!C20="","",सेटिंग्स!C20) ->  | AC17: =IFERROR(AVERAGEIFS(tblClassScores[स्कोर],tblClassScores[कक्षा],परिकलन!$C17,tblClassScores[प्रकार],परिकलन!AC$5)*सेटिंग्स!#REF!,"") ->  | AD17: =IFERROR(AVERAGEIFS(tblClassScores[स्कोर],tblClassScores[कक्षा],परिकलन!$C17,tblClassScores[प्रकार],परिकलन!AD$5)*सेटिंग्स!#REF!,"") ->  | AE17: =IFERROR(AVERAGEIFS(tblClassScores[स्कोर],tblClassScores[कक्षा],परिकलन!$C17,tblClassScores[प्रकार],परिकलन!AE$5)*सेटिंग्स!#REF!,"") ->  | AF17: =IFERROR(AVERAGEIFS(tblClassScores[स्कोर],tblClassScores[कक्षा],परिकलन!$C17,tblClassScores[प्रकार],परिकलन!AF$5)*सेटिंग्स!#REF!,"") ->  | AG17: =IFERROR(AVERAGEIFS(tblClassScores[स्कोर],tblClassScores[कक्षा],परिकलन!$C17,tblClassScores[प्रकार],परिकलन!AG$5)*सेटिंग्स!#REF!,"") ->  | AH17: =IFERROR(AVERAGEIFS(tblClassScores[स्कोर],tblClassScores[कक्षा],परिकलन!$C17,tblClassScores[प्रकार],परिकलन!AH$5)*सेटिंग्स!#REF!,"") ->  | AI17: =IFERROR(AVERAGEIFS(tblClassScores[स्कोर],tblClassScores[कक्षा],परिकलन!$C17,tblClassScores[प्रकार],परिकलन!AI$5)*सेटिंग्स!#REF!,"") ->  | AJ17: 0 | AK17: =SUMIFS(सेटिंग्स!E20:K20,परिकलन!AC17:AI17,">0") -> 0
C18: =IF(सेटिंग्स!C21="","",सेटिंग्स!C21) ->  | AC18: =IFERROR(AVERAGEIFS(tblClassScores[स्कोर],tblClassScores[कक्षा],परिकलन!$C18,tblClassScores[प्रकार],परिकलन!AC$5)*सेटिंग्स!#REF!,"") ->  | AD18: =IFERROR(AVERAGEIFS(tblClassScores[स्कोर],tblClassScores[कक्षा],परिकलन!$C18,tblClassScores[प्रकार],परिकलन!AD$5)*सेटिंग्स!#REF!,"") ->  | AE18: =IFERROR(AVERAGEIFS(tblClassScores[स्कोर],tblClassScores[कक्षा],परिकलन!$C18,tblClassScores[प्रकार],परिकलन!AE$5)*सेटिंग्स!#REF!,"") ->  | AF18: =IFERROR(AVERAGEIFS(tblClassScores[स्कोर],tblClassScores[कक्षा],परिकलन!$C18,tblClassScores[प्रकार],परिकलन!AF$5)*सेटिंग्स!#REF!,"") ->  | AG18: =IFERROR(AVERAGEIFS(tblClassScores[स्कोर],tblClassScores[कक्षा],परिकलन!$C18,tblClassScores[प्रकार],परिकलन!AG$5)*सेटिंग्स!#REF!,"") ->  | AH18: =IFERROR(AVERAGEIFS(tblClassScores[स्कोर],tblClassScores[कक्षा],परिकलन!$C18,tblClassScores[प्रकार],परिकलन!AH$5)*सेटिंग्स!#REF!,"") ->  | AI18: =IFERROR(AVERAGEIFS(tblClassScores[स्कोर],tblClassScores[कक्षा],परिकलन!$C18,tblClassScores[प्रकार],परिकलन!AI$5)*सेटिंग्स!#REF!,"") ->  | AJ18: 0 | AK18: =SUMIFS(सेटिंग्स!E21:K21,परिकलन!AC18:AI18,">0") -> 0
C19: =IF(सेटिंग्स!C22="","",सेटिंग्स!C22) ->  | AC19: =IFERROR(AVERAGEIFS(tblClassScores[स्कोर],tblClassScores[कक्षा],परिकलन!$C19,tblClassScores[प्रकार],परिकलन!AC$5)*सेटिंग्स!#REF!,"") ->  | AD19: =IFERROR(AVERAGEIFS(tblClassScores[स्कोर],tblClassScores[कक्षा],परिकलन!$C19,tblClassScores[प्रकार],परिकलन!AD$5)*सेटिंग्स!#REF!,"") ->  | AE19: =IFERROR(AVERAGEIFS(tblClassScores[स्कोर],tblClassScores[कक्षा],परिकलन!$C19,tblClassScores[प्रकार],परिकलन!AE$5)*सेटिंग्स!#REF!,"") ->  | AF19: =IFERROR(AVERAGEIFS(tblClassScores[स्कोर],tblClassScores[कक्षा],परिकलन!$C19,tblClassScores[प्रकार],परिकलन!AF$5)*सेटिंग्स!#REF!,"") ->  | AG19: =IFERROR(AVERAGEIFS(tblClassScores[स्कोर],tblClassScores[कक्षा],परिकलन!$C19,tblClassScores[प्रकार],परिकलन!AG$5)*सेटिंग्स!#REF!,"") ->  | AH19: =IFERROR(AVERAGEIFS(tblClassScores[स्कोर],tblClassScores[कक्षा],परिकलन!$C19,tblClassScores[प्रकार],परिकलन!AH$5)*सेटिंग्स!#REF!,"") ->  | AI19: =IFERROR(AVERAGEIFS(tblClassScores[स्कोर],tblClassScores[कक्षा],परिकलन!$C19,tblClassScores[प्रकार],परिकलन!AI$5)*सेटिंग्स!#REF!,"") ->  | AJ19: 0 | AK19: =SUMIFS(सेटिंग्स!E22:K22,परिकलन!AC19:AI19,">0") -> 0
C20: =IF(सेटिंग्स!C23="","",सेटिंग्स!C23) ->  | AC20: =IFERROR(AVERAGEIFS(tblClassScores[स्कोर],tblClassScores[कक्षा],परिकलन!$C20,tblClassScores[प्रकार],परिकलन!AC$5)*सेटिंग्स!#REF!,"") ->  | AD20: =IFERROR(AVERAGEIFS(tblClassScores[स्कोर],tblClassScores[कक्षा],परिकलन!$C20,tblClassScores[प्रकार],परिकलन!AD$5)*सेटिंग्स!#REF!,"") ->  | AE20: =IFERROR(AVERAGEIFS(tblClassScores[स्कोर],tblClassScores[कक्षा],परिकलन!$C20,tblClassScores[प्रकार],परिकलन!AE$5)*सेटिंग्स!#REF!,"") ->  | AF20: =IFERROR(AVERAGEIFS(tblClassScores[स्कोर],tblClassScores[कक्षा],परिकलन!$C20,tblClassScores[प्रकार],परिकलन!AF$5)*सेटिंग्स!#REF!,"") ->  | AG20: =IFERROR(AVERAGEIFS(tblClassScores[स्कोर],tblClassScores[कक्षा],परिकलन!$C20,tblClassScores[प्रकार],परिकलन!AG$5)*सेटिंग्स!#REF!,"") ->  | AH20: =IFERROR(AVERAGEIFS(tblClassScores[स्कोर],tblClassScores[कक्षा],परिकलन!$C20,tblClassScores[प्रकार],परिकलन!AH$5)*सेटिंग्स!#REF!,"") ->  | AI20: =IFERROR(AVERAGEIFS(tblClassScores[स्कोर],tblClassScores[कक्षा],परिकलन!$C20,tblClassScores[प्रकार],परिकलन!AI$5)*सेटिंग्स!#REF!,"") ->  | AJ20: 0 | AK20: =SUMIFS(सेटिंग्स!E23:K23,परिकलन!AC20:AI20,">0") -> 0
C21: =IF(सेटिंग्स!C24="","",सेटिंग्स!C24) ->  | AC21: =IFERROR(AVERAGEIFS(tblClassScores[स्कोर],tblClassScores[कक्षा],परिकलन!$C21,tblClassScores[प्रकार],परिकलन!AC$5)*सेटिंग्स!#REF!,"") ->  | AD21: =IFERROR(AVERAGEIFS(tblClassScores[स्कोर],tblClassScores[कक्षा],परिकलन!$C21,tblClassScores[प्रकार],परिकलन!AD$5)*सेटिंग्स!#REF!,"") ->  | AE21: =IFERROR(AVERAGEIFS(tblClassScores[स्कोर],tblClassScores[कक्षा],परिकलन!$C21,tblClassScores[प्रकार],परिकलन!AE$5)*सेटिंग्स!#REF!,"") ->  | AF21: =IFERROR(AVERAGEIFS(tblClassScores[स्कोर],tblClassScores[कक्षा],परिकलन!$C21,tblClassScores[प्रकार],परिकलन!AF$5)*सेटिंग्स!#REF!,"") ->  | AG21: =IFERROR(AVERAGEIFS(tblClassScores[स्कोर],tblClassScores[कक्षा],परिकलन!$C21,tblClassScores[प्रकार],परिकलन!AG$5)*सेटिंग्स!#REF!,"") ->  | AH21: =IFERROR(AVERAGEIFS(tblClassScores[स्कोर],tblClassScores[कक्षा],परिकलन!$C21,tblClassScores[प्रकार],परिकलन!AH$5)*सेटिंग्स!#REF!,"") ->  | AI21: =IFERROR(AVERAGEIFS(tblClassScores[स्कोर],tblClassScores[कक्षा],परिकलन!$C21,tblClassScores[प्रकार],परिकलन!AI$5)*सेटिंग्स!#REF!,"") ->  | AJ21: 0 | AK21: =SUMIFS(सेटिंग्स!E24:K24,परिकलन!AC21:AI21,">0") -> 0
C22: =IF(सेटिंग्स!C25="","",सेटिंग्स!C25) ->  | AC22: =IFERROR(AVERAGEIFS(tblClassScores[स्कोर],tblClassScores[कक्षा],परिकलन!$C22,tblClassScores[प्रकार],परिकलन!AC$5)*सेटिंग्स!#REF!,"") ->  | AD22: =IFERROR(AVERAGEIFS(tblClassScores[स्कोर],tblClassScores[कक्षा],परिकलन!$C22,tblClassScores[प्रकार],परिकलन!AD$5)*सेटिंग्स!#REF!,"") ->  | AE22: =IFERROR(AVERAGEIFS(tblClassScores[स्कोर],tblClassScores[कक्षा],परिकलन!$C22,tblClassScores[प्रकार],परिकलन!AE$5)*सेटिंग्स!#REF!,"") ->  | AF22: =IFERROR(AVERAGEIFS(tblClassScores[स्कोर],tblClassScores[कक्षा],परिकलन!$C22,tblClassScores[प्रकार],परिकलन!AF$5)*सेटिंग्स!#REF!,"") ->  | AG22: =IFERROR(AVERAGEIFS(tblClassScores[स्कोर],tblClassScores[कक्षा],परिकलन!$C22,tblClassScores[प्रकार],परिकलन!AG$5)*सेटिंग्स!#REF!,"") ->  | AH22: =IFERROR(AVERAGEIFS(tblClassScores[स्कोर],tblClassScores[कक्षा],परिकलन!$C22,tblClassScores[प्रकार],परिकलन!AH$5)*सेटिंग्स!#REF!,"") ->  | AI22: =IFERROR(AVERAGEIFS(tblClassScores[स्कोर],tblClassScores[कक्षा],परिकलन!$C22,tblClassScores[प्रकार],परिकलन!AI$5)*सेटिंग्स!#REF!,"") ->  | AJ22: 0 | AK22: =SUMIFS(सेटिंग्स!E25:K25,परिकलन!AC22:AI22,">0") -> 0
C23: =IF(सेटिंग्स!C26="","",सेटिंग्स!C26) ->  | AC23: =IFERROR(AVERAGEIFS(tblClassScores[स्कोर],tblClassScores[कक्षा],परिकलन!$C23,tblClassScores[प्रकार],परिकलन!AC$5)*सेटिंग्स!#REF!,"") ->  | AD23: =IFERROR(AVERAGEIFS(tblClassScores[स्कोर],tblClassScores[कक्षा],परिकलन!$C23,tblClassScores[प्रकार],परिकलन!AD$5)*सेटिंग्स!#REF!,"") ->  | AE23: =IFERROR(AVERAGEIFS(tblClassScores[स्कोर],tblClassScores[कक्षा],परिकलन!$C23,tblClassScores[प्रकार],परिकलन!AE$5)*सेटिंग्स!#REF!,"") ->  | AF23: =IFERROR(AVERAGEIFS(tblClassScores[स्कोर],tblClassScores[कक्षा],परिकलन!$C23,tblClassScores[प्रकार],परिकलन!AF$5)*सेटिंग्स!#REF!,"") ->  | AG23: =IFERROR(AVERAGEIFS(tblClassScores[स्कोर],tblClassScores[कक्षा],परिकलन!$C23,tblClassScores[प्रकार],परिकलन!AG$5)*सेटिंग्स!#REF!,"") ->  | AH23: =IFERROR(AVERAGEIFS(tblClassScores[स्कोर],tblClassScores[कक्षा],परिकलन!$C23,tblClassScores[प्रकार],परिकलन!AH$5)*सेटिंग्स!#REF!,"") ->  | AI23: =IFERROR(AVERAGEIFS(tblClassScores[स्कोर],tblClassScores[कक्षा],परिकलन!$C23,tblClassScores[प्रकार],परिकलन!AI$5)*सेटिंग्स!#REF!,"") ->  | AJ23: 0 | AK23: =SUMIFS(सेटिंग्स!E26:K26,परिकलन!AC23:AI23,">0") -> 0
C24: =IF(सेटिंग्स!C27="","",सेटिंग्स!C27) ->  | AC24: =IFERROR(AVERAGEIFS(tblClassScores[स्कोर],tblClassScores[कक्षा],परिकलन!$C24,tblClassScores[प्रकार],परिकलन!AC$5)*सेटिंग्स!#REF!,"") ->  | AD24: =IFERROR(AVERAGEIFS(tblClassScores[स्कोर],tblClassScores[कक्षा],परिकलन!$C24,tblClassScores[प्रकार],परिकलन!AD$5)*सेटिंग्स!#REF!,"") ->  | AE24: =IFERROR(AVERAGEIFS(tblClassScores[स्कोर],tblClassScores[कक्षा],परिकलन!$C24,tblClassScores[प्रकार],परिकलन!AE$5)*सेटिंग्स!#REF!,"") ->  | AF24: =IFERROR(AVERAGEIFS(tblClassScores[स्कोर],tblClassScores[कक्षा],परिकलन!$C24,tblClassScores[प्रकार],परिकलन!AF$5)*सेटिंग्स!#REF!,"") ->  | AG24: =IFERROR(AVERAGEIFS(tblClassScores[स्कोर],tblClassScores[कक्षा],परिकलन!$C24,tblClassScores[प्रकार],परिकलन!AG$5)*सेटिंग्स!#REF!,"") ->  | AH24: =IFERROR(AVERAGEIFS(tblClassScores[स्कोर],tblClassScores[कक्षा],परिकलन!$C24,tblClassScores[प्रकार],परिकलन!AH$5)*सेटिंग्स!#REF!,"") ->  | AI24: =IFERROR(AVERAGEIFS(tblClassScores[स्कोर],tblClassScores[कक्षा],परिकलन!$C24,tblClassScores[प्रकार],परिकलन!AI$5)*सेटिंग्स!#REF!,"") ->  | AJ24: 0 | AK24: =SUMIFS(सेटिंग्स!E27:K27,परिकलन!AC24:AI24,">0") -> 0
C25: =IF(सेटिंग्स!C28="","",सेटिंग्स!C28) ->  | AC25: =IFERROR(AVERAGEIFS(tblClassScores[स्कोर],tblClassScores[कक्षा],परिकलन!$C25,tblClassScores[प्रकार],परिकलन!AC$5)*सेटिंग्स!#REF!,"") ->  | AD25: =IFERROR(AVERAGEIFS(tblClassScores[स्कोर],tblClassScores[कक्षा],परिकलन!$C25,tblClassScores[प्रकार],परिकलन!AD$5)*सेटिंग्स!#REF!,"") ->  | AE25: =IFERROR(AVERAGEIFS(tblClassScores[स्कोर],tblClassScores[कक्षा],परिकलन!$C25,tblClassScores[प्रकार],परिकलन!AE$5)*सेटिंग्स!#REF!,"") ->  | AF25: =IFERROR(AVERAGEIFS(tblClassScores[स्कोर],tblClassScores[कक्षा],परिकलन!$C25,tblClassScores[प्रकार],परिकलन!AF$5)*सेटिंग्स!#REF!,"") ->  | AG25: =IFERROR(AVERAGEIFS(tblClassScores[स्कोर],tblClassScores[कक्षा],परिकलन!$C25,tblClassScores[प्रकार],परिकलन!AG$5)*सेटिंग्स!#REF!,"") ->  | AH25: =IFERROR(AVERAGEIFS(tblClassScores[स्कोर],tblClassScores[कक्षा],परिकलन!$C25,tblClassScores[प्रकार],परिकलन!AH$5)*सेटिंग्स!#REF!,"") ->  | AI25: =IFERROR(AVERAGEIFS(tblClassScores[स्कोर],tblClassScores[कक्षा],परिकलन!$C25,tblClassScores[प्रकार],परिकलन!AI$5)*सेटिंग्स!#REF!,"") ->  | AJ25: 0 | AK25: =SUMIFS(सेटिंग्स!E28:K28,परिकलन!AC25:AI25,">0") -> 0
C26: =IF(सेटिंग्स!C29="","",सेटिंग्स!C29) ->  | AC26: =IFERROR(AVERAGEIFS(tblClassScores[स्कोर],tblClassScores[कक्षा],परिकलन!$C26,tblClassScores[प्रकार],परिकलन!AC$5)*सेटिंग्स!#REF!,"") ->  | AD26: =IFERROR(AVERAGEIFS(tblClassScores[स्कोर],tblClassScores[कक्षा],परिकलन!$C26,tblClassScores[प्रकार],परिकलन!AD$5)*सेटिंग्स!#REF!,"") ->  | AE26: =IFERROR(AVERAGEIFS(tblClassScores[स्कोर],tblClassScores[कक्षा],परिकलन!$C26,tblClassScores[प्रकार],परिकलन!AE$5)*सेटिंग्स!#REF!,"") ->  | AF26: =IFERROR(AVERAGEIFS(tblClassScores[स्कोर],tblClassScores[कक्षा],परिकलन!$C26,tblClassScores[प्रकार],परिकलन!AF$5)*सेटिंग्स!#REF!,"") ->  | AG26: =IFERROR(AVERAGEIFS(tblClassScores[स्कोर],tblClassScores[कक्षा],परिकलन!$C26,tblClassScores[प्रकार],परिकलन!AG$5)*सेटिंग्स!#REF!,"") ->  | AH26: =IFERROR(AVERAGEIFS(tblClassScores[स्कोर],tblClassScores[कक्षा],परिकलन!$C26,tblClassScores[प्रकार],परिकलन!AH$5)*सेटिंग्स!#REF!,"") ->  | AI26: =IFERROR(AVERAGEIFS(tblClassScores[स्कोर],tblClassScores[कक्षा],परिकलन!$C26,tblClassScores[प्रकार],परिकलन!AI$5)*सेटिंग्स!#REF!,"") ->  | AJ26: 0 | AK26: =SUMIFS(सेटिंग्स!E29:K29,परिकलन!AC26:AI26,">0") -> 0
C27: =IF(सेटिंग्स!C30="","",सेटिंग्स!C30) ->  | AC27: =IFERROR(AVERAGEIFS(tblClassScores[स्कोर],tblClassScores[कक्षा],परिकलन!$C27,tblClassScores[प्रकार],परिकलन!AC$5)*सेटिंग्स!#REF!,"") ->  | AD27: =IFERROR(AVERAGEIFS(tblClassScores[स्कोर],tblClassScores[कक्षा],परिकलन!$C27,tblClassScores[प्रकार],परिकलन!AD$5)*सेटिंग्स!#REF!,"") ->  | AE27: =IFERROR(AVERAGEIFS(tblClassScores[स्कोर],tblClassScores[कक्षा],परिकलन!$C27,tblClassScores[प्रकार],परिकलन!AE$5)*सेटिंग्स!#REF!,"") ->  | AF27: =IFERROR(AVERAGEIFS(tblClassScores[स्कोर],tblClassScores[कक्षा],परिकलन!$C27,tblClassScores[प्रकार],परिकलन!AF$5)*सेटिंग्स!#REF!,"") ->  | AG27: =IFERROR(AVERAGEIFS(tblClassScores[स्कोर],tblClassScores[कक्षा],परिकलन!$C27,tblClassScores[प्रकार],परिकलन!AG$5)*सेटिंग्स!#REF!,"") ->  | AH27: =IFERROR(AVERAGEIFS(tblClassScores[स्कोर],tblClassScores[कक्षा],परिकलन!$C27,tblClassScores[प्रकार],परिकलन!AH$5)*सेटिंग्स!#REF!,"") ->  | AI27: =IFERROR(AVERAGEIFS(tblClassScores[स्कोर],tblClassScores[कक्षा],परिकलन!$C27,tblClassScores[प्रकार],परिकलन!AI$5)*सेटिंग्स!#REF!,"") ->  | AJ27: 0 | AK27: =SUMIFS(सेटिंग्स!E30:K30,परिकलन!AC27:AI27,">0") -> 0
C28: =IF(सेटिंग्स!C31="","",सेटिंग्स!C31) ->  | AC28: =IFERROR(AVERAGEIFS(tblClassScores[स्कोर],tblClassScores[कक्षा],परिकलन!$C28,tblClassScores[प्रकार],परिकलन!AC$5)*सेटिंग्स!#REF!,"") ->  | AD28: =IFERROR(AVERAGEIFS(tblClassScores[स्कोर],tblClassScores[कक्षा],परिकलन!$C28,tblClassScores[प्रकार],परिकलन!AD$5)*सेटिंग्स!#REF!,"") ->  | AE28: =IFERROR(AVERAGEIFS(tblClassScores[स्कोर],tblClassScores[कक्षा],परिकलन!$C28,tblClassScores[प्रकार],परिकलन!AE$5)*सेटिंग्स!#REF!,"") ->  | AF28: =IFERROR(AVERAGEIFS(tblClassScores[स्कोर],tblClassScores[कक्षा],परिकलन!$C28,tblClassScores[प्रकार],परिकलन!AF$5)*सेटिंग्स!#REF!,"") ->  | AG28: =IFERROR(AVERAGEIFS(tblClassScores[स्कोर],tblClassScores[कक्षा],परिकलन!$C28,tblClassScores[प्रकार],परिकलन!AG$5)*सेटिंग्स!#REF!,"") ->  | AH28: =IFERROR(AVERAGEIFS(tblClassScores[स्कोर],tblClassScores[कक्षा],परिकलन!$C28,tblClassScores[प्रकार],परिकलन!AH$5)*सेटिंग्स!#REF!,"") ->  | AI28: =IFERROR(AVERAGEIFS(tblClassScores[स्कोर],tblClassScores[कक्षा],परिकलन!$C28,tblClassScores[प्रकार],परिकलन!AI$5)*सेटिंग्स!#REF!,"") ->  | AJ28: 0 | AK28: =SUMIFS(सेटिंग्स!E31:K31,परिकलन!AC28:AI28,">0") -> 0
C29: =IF(सेटिंग्स!C32="","",सेटिंग्स!C32) ->  | AC29: =IFERROR(AVERAGEIFS(tblClassScores[स्कोर],tblClassScores[कक्षा],परिकलन!$C29,tblClassScores[प्रकार],परिकलन!AC$5)*सेटिंग्स!#REF!,"") ->  | AD29: =IFERROR(AVERAGEIFS(tblClassScores[स्कोर],tblClassScores[कक्षा],परिकलन!$C29,tblClassScores[प्रकार],परिकलन!AD$5)*सेटिंग्स!#REF!,"") ->  | AE29: =IFERROR(AVERAGEIFS(tblClassScores[स्कोर],tblClassScores[कक्षा],परिकलन!$C29,tblClassScores[प्रकार],परिकलन!AE$5)*सेटिंग्स!#REF!,"") ->  | AF29: =IFERROR(AVERAGEIFS(tblClassScores[स्कोर],tblClassScores[कक्षा],परिकलन!$C29,tblClassScores[प्रकार],परिकलन!AF$5)*सेटिंग्स!#REF!,"") ->  | AG29: =IFERROR(AVERAGEIFS(tblClassScores[स्कोर],tblClassScores[कक्षा],परिकलन!$C29,tblClassScores[प्रकार],परिकलन!AG$5)*सेटिंग्स!#REF!,"") ->  | AH29: =IFERROR(AVERAGEIFS(tblClassScores[स्कोर],tblClassScores[कक्षा],परिकलन!$C29,tblClassScores[प्रकार],परिकलन!AH$5)*सेटिंग्स!#REF!,"") ->  | AI29: =IFERROR(AVERAGEIFS(tblClassScores[स्कोर],tblClassScores[कक्षा],परिकलन!$C29,tblClassScores[प्रकार],परिकलन!AI$5)*सेटिंग्स!#REF!,"") ->  | AJ29: 0 | AK29: =SUMIFS(सेटिंग्स!E32:K32,परिकलन!AC29:AI29,">0") -> 0
C30: =IF(सेटिंग्स!C33="","",सेटिंग्स!C33) ->  | AC30: =IFERROR(AVERAGEIFS(tblClassScores[स्कोर],tblClassScores[कक्षा],परिकलन!$C30,tblClassScores[प्रकार],परिकलन!AC$5)*सेटिंग्स!#REF!,"") ->  | AD30: =IFERROR(AVERAGEIFS(tblClassScores[स्कोर],tblClassScores[कक्षा],परिकलन!$C30,tblClassScores[प्रकार],परिकलन!AD$5)*सेटिंग्स!#REF!,"") ->  | AE30: =IFERROR(AVERAGEIFS(tblClassScores[स्कोर],tblClassScores[कक्षा],परिकलन!$C30,tblClassScores[प्रकार],परिकलन!AE$5)*सेटिंग्स!#REF!,"") ->  | AF30: =IFERROR(AVERAGEIFS(tblClassScores[स्कोर],tblClassScores[कक्षा],परिकलन!$C30,tblClassScores[प्रकार],परिकलन!AF$5)*सेटिंग्स!#REF!,"") ->  | AG30: =IFERROR(AVERAGEIFS(tblClassScores[स्कोर],tblClassScores[कक्षा],परिकलन!$C30,tblClassScores[प्रकार],परिकलन!AG$5)*सेटिंग्स!#REF!,"") ->  | AH30: =IFERROR(AVERAGEIFS(tblClassScores[स्कोर],tblClassScores[कक्षा],परिकलन!$C30,tblClassScores[प्रकार],परिकलन!AH$5)*सेटिंग्स!#REF!,"") ->  | AI30: =IFERROR(AVERAGEIFS(tblClassScores[स्कोर],tblClassScores[कक्षा],परिकलन!$C30,tblClassScores[प्रकार],परिकलन!AI$5)*सेटिंग्स!#REF!,"") ->  | AJ30: 0 | AK30: =SUMIFS(सेटिंग्स!E33:K33,परिकलन!AC30:AI30,">0") -> 0
B33: 1 | C33: ='स्कोर ट्रैकर'!C4&COUNTIF('स्कोर ट्रैकर'!$C$4:C4,'स्कोर ट्रैकर'!C4) -> आधुनिक फ़्रेंच1
B34: 2 | C34: ='स्कोर ट्रैकर'!C5&COUNTIF('स्कोर ट्रैकर'!$C$4:C5,'स्कोर ट्रैकर'!C5) -> Java में उन्नत प्रोग्रामिंग1
B35: 3 | C35: ='स्कोर ट्रैकर'!C6&COUNTIF('स्कोर ट्रैकर'!$C$4:C6,'स्कोर ट्रैकर'!C6) -> स्पैनिश1
B36: 4 | C36: ='स्कोर ट्रैकर'!C7&COUNTIF('स्कोर ट्रैकर'!$C$4:C7,'स्कोर ट्रैकर'!C7) -> सैद्धांतिक भौतिकी1
B37: 5 | C37: ='स्कोर ट्रैकर'!C8&COUNTIF('स्कोर ट्रैकर'!$C$4:C8,'स्कोर ट्रैकर'!C8) -> आधुनिक फ़्रेंच2
B38: 6 | C38: ='स्कोर ट्रैकर'!C9&COUNTIF('स्कोर ट्रैकर'!$C$4:C9,'स्कोर ट्रैकर'!C9) -> आधुनिक फ़्रेंच3
B39: 7 | C39: ='स्कोर ट्रैकर'!C10&COUNTIF('स्कोर ट्रैकर'!$C$4:C10,'स्कोर ट्रैकर'!C10) -> संरचना1
B40: 8 | C40: ='स्कोर ट्रैकर'!C11&COUNTIF('स्कोर ट्रैकर'!$C$4:C11,'स्कोर ट्रैकर'!C11) -> गणित 11
B41: 9 | C41: ='स्कोर ट्रैकर'!C12&COUNTIF('स्कोर ट्रैकर'!$C$4:C12,'स्कोर ट्रैकर'!C12) -> गणित 21
B42: 10 | C42: ='स्कोर ट्रैकर'!C13&COUNTIF('स्कोर ट्रैकर'!$C$4:C14,'स्कोर ट्रैकर'!C13) -> गणित 12
B43: 11 | C43: ='स्कोर ट्रैकर'!C14&COUNTIF('स्कोर ट्रैकर'!$C$4:C14,'स्कोर ट्रैकर'!C14) -> गणित 22
B44: 12 | C44: ='स्कोर ट्रैकर'!C15&COUNTIF('स्कोर ट्रैकर'!$C$4:C15,'स्कोर ट्रैकर'!C15) -> 0
B45: 13 | C45: ='स्कोर ट्रैकर'!C16&COUNTIF('स्कोर ट्रैकर'!$C$4:C16,'स्कोर ट्रैकर'!C16) -> 0
B46: 14 | C46: ='स्कोर ट्रैकर'!C17&COUNTIF('स्कोर ट्रैकर'!$C$4:C17,'स्कोर ट्रैकर'!C17) -> 0
B47: 15 | C47: ='स्कोर ट्रैकर'!C18&COUNTIF('स्कोर ट्रैकर'!$C$4:C18,'स्कोर ट्रैकर'!C18) -> 0
B48: 16 | C48: ='स्कोर ट्रैकर'!C19&COUNTIF('स्कोर ट्रैकर'!$C$4:C19,'स्कोर ट्रैकर'!C19) -> 0
B49: 17 | C49: ='स्कोर ट्रैकर'!C20&COUNTIF('स्कोर ट्रैकर'!$C$4:C20,'स्कोर ट्रैकर'!C20) -> 0
B50: 18 | C50: ='स्कोर ट्रैकर'!C21&COUNTIF('स्कोर ट्रैकर'!$C$4:C21,'स्कोर ट्रैकर'!C21) -> 0
B51: 19 | C51: ='स्कोर ट्रैकर'!C22&COUNTIF('स्कोर ट्रैकर'!$C$4:C22,'स्कोर ट्रैकर'!C22) -> 0
B52: 20 | C52: ='स्कोर ट्रैकर'!C23&COUNTIF('स्कोर ट्रैकर'!$C$4:C23,'स्कोर ट्रैकर'!C23) -> 0
B53: 21 | C53: ='स्कोर ट्रैकर'!C24&COUNTIF('स्कोर ट्रैकर'!$C$4:C24,'स्कोर ट्रैकर'!C24) -> 0
B54: 22 | C54: ='स्कोर ट्रैकर'!C25&COUNTIF('स्कोर ट्रैकर'!$C$4:C25,'स्कोर ट्रैकर'!C25) -> 0
B55: 23 | C55: ='स्कोर ट्रैकर'!C26&COUNTIF('स्कोर ट्रैकर'!$C$4:C26,'स्कोर ट्रैकर'!C26) -> 0
B56: 24 | C56: ='स्कोर ट्रैकर'!C27&COUNTIF('स्कोर ट्रैकर'!$C$4:C27,'स्कोर ट्रैकर'!C27) -> 0
B57: 25 | C57: ='स्कोर ट्रैकर'!C28&COUNTIF('स्कोर ट्रैकर'!$C$4:C28,'स्कोर ट्रैकर'!C28) -> 0
B58: 26 | C58: ='स्कोर ट्रैकर'!C29&COUNTIF('स्कोर ट्रैकर'!$C$4:C29,'स्कोर ट्रैकर'!C29) -> 0
B59: 27 | C59: ='स्कोर ट्रैकर'!C30&COUNTIF('स्कोर ट्रैकर'!$C$4:C30,'स्कोर ट्रैकर'!C30) -> 0
B60: 28 | C60: ='स्कोर ट्रैकर'!C31&COUNTIF('स्कोर ट्रैकर'!$C$4:C31,'स्कोर ट्रैकर'!C31) -> 0
B61: 29 | C61: ='स्कोर ट्रैकर'!C32&COUNTIF('स्कोर ट्रैकर'!$C$4:C32,'स्कोर ट्रैकर'!C32) -> 0
B62: 30 | C62: ='स्कोर ट्रैकर'!C33&COUNTIF('स्कोर ट्रैकर'!$C$4:C33,'स्कोर ट्रैकर'!C33) -> 0
B63: 31 | C63: ='स्कोर ट्रैकर'!C34&COUNTIF('स्कोर ट्रैकर'!$C$4:C34,'स्कोर ट्रैकर'!C34) -> 0
B64: 32 | C64: ='स्कोर ट्रैकर'!C35&COUNTIF('स्कोर ट्रैकर'!$C$4:C35,'स्कोर ट्रैकर'!C35) -> 0
B65: 33 | C65: ='स्कोर ट्रैकर'!C36&COUNTIF('स्कोर ट्रैकर'!$C$4:C36,'स्कोर ट्रैकर'!C36) -> 0
B66: 34 | C66: ='स्कोर ट्रैकर'!C37&COUNTIF('स्कोर ट्रैकर'!$C$4:C37,'स्कोर ट्रैकर'!C37) -> 0
B67: 35 | C67: ='स्कोर ट्रैकर'!C38&COUNTIF('स्कोर ट्रैकर'!$C$4:C38,'स्कोर ट्रैकर'!C38) -> 0
B68: 36 | C68: ='स्कोर ट्रैकर'!C39&COUNTIF('स्कोर ट्रैकर'!$C$4:C39,'स्कोर ट्रैकर'!C39) -> 0
B69: 37 | C69: ='स्कोर ट्रैकर'!C40&COUNTIF('स्कोर ट्रैकर'!$C$4:C40,'स्कोर ट्रैकर'!C40) -> 0
B70: 38 | C70: ='स्कोर ट्रैकर'!C41&COUNTIF('स्कोर ट्रैकर'!$C$4:C41,'स्कोर ट्रैकर'!C41) -> 0
B71: 39 | C71: ='स्कोर ट्रैकर'!C42&COUNTIF('स्कोर ट्रैकर'!$C$4:C42,'स्कोर ट्रैकर'!C42) -> 0
B72: 40 | C72: ='स्कोर ट्रैकर'!C43&COUNTIF('स्कोर ट्रैकर'!$C$4:C43,'स्कोर ट्रैकर'!C43) -> 0
B73: 41 | C73: ='स्कोर ट्रैकर'!C44&COUNTIF('स्कोर ट्रैकर'!$C$4:C44,'स्कोर ट्रैकर'!C44) -> 0
B74: 42 | C74: ='स्कोर ट्रैकर'!C45&COUNTIF('स्कोर ट्रैकर'!$C$4:C45,'स्कोर ट्रैकर'!C45) -> 0
B75: 43 | C75: ='स्कोर ट्रैकर'!C46&COUNTIF('स्कोर ट्रैकर'!$C$4:C46,'स्कोर ट्रैकर'!C46) -> 0
B76: 44 | C76: ='स्कोर ट्रैकर'!C47&COUNTIF('स्कोर ट्रैकर'!$C$4:C47,'स्कोर ट्रैकर'!C47) -> 0
B77: 45 | C77: ='स्कोर ट्रैकर'!C48&COUNTIF('स्कोर ट्रैकर'!$C$4:C48,'स्कोर ट्रैकर'!C48) -> 0
B78: 46 | C78: ='स्कोर ट्रैकर'!C49&COUNTIF('स्कोर ट्रैकर'!$C$4:C49,'स्कोर ट्रैकर'!C49) -> 0
B79: 47 | C79: ='स्कोर ट्रैकर'!C50&COUNTIF('स्कोर ट्रैकर'!$C$4:C50,'स्कोर ट्रैकर'!C50) -> 0
B80: 48 | C80: ='स्कोर ट्रैकर'!C51&COUNTIF('स्कोर ट्रैकर'!$C$4:C51,'स्कोर ट्रैकर'!C51) -> 0
B81: 49 | C81: ='स्कोर ट्रैकर'!C52&COUNTIF('स्कोर ट्रैकर'!$C$4:C52,'स्कोर ट्रैकर'!C52) -> 0
B82: 50 | C82: ='स्कोर ट्रैकर'!C53&COUNTIF('स्कोर ट्रैकर'!$C$4:C53,'स्कोर ट्रैकर'!C53) -> 0
B83: 51 | C83: ='स्कोर ट्रैकर'!C54&COUNTIF('स्कोर ट्रैकर'!$C$4:C54,'स्कोर ट्रैकर'!C54) -> 0
B84: 52 | C84: ='स्कोर ट्रैकर'!C55&COUNTIF('स्कोर ट्रैकर'!$C$4:C55,'स्कोर ट्रैकर'!C55) -> 0
B85: 53 | C85: ='स्कोर ट्रैकर'!C56&COUNTIF('स्कोर ट्रैकर'!$C$4:C56,'स्कोर ट्रैकर'!C56) -> 0
B86: 54 | C86: ='स्कोर ट्रैकर'!C57&COUNTIF('स्कोर ट्रैकर'!$C$4:C57,'स्कोर ट्रैकर'!C57) -> 0
B87: 55 | C87: ='स्कोर ट्रैकर'!C58&COUNTIF('स्कोर ट्रैकर'!$C$4:C58,'स्कोर ट्रैकर'!C58) -> 0
B88: 56 | C88: ='स्कोर ट्रैकर'!C59&COUNTIF('स्कोर ट्रैकर'!$C$4:C59,'स्कोर ट्रैकर'!C59) -> 0
B89: 57 | C89: ='स्कोर ट्रैकर'!C60&COUNTIF('स्कोर ट्रैकर'!$C$4:C60,'स्कोर ट्रैकर'!C60) -> 0
B90: 58 | C90: ='स्कोर ट्रैकर'!C61&COUNTIF('स्कोर ट्रैकर'!$C$4:C61,'स्कोर ट्रैकर'!C61) -> 0
B91: 59 | C91: ='स्कोर ट्रैकर'!C62&COUNTIF('स्कोर ट्रैकर'!$C$4:C62,'स्कोर ट्रैकर'!C62) -> 0
B92: 60 | C92: ='स्कोर ट्रैकर'!C63&COUNTIF('स्कोर ट्रैकर'!$C$4:C63,'स्कोर ट्रैकर'!C63) -> 0
B93: 61 | C93: ='स्कोर ट्रैकर'!C64&COUNTIF('स्कोर ट्रैकर'!$C$4:C64,'स्कोर ट्रैकर'!C64) -> 0
B94: 62 | C94: ='स्कोर ट्रैकर'!C65&COUNTIF('स्कोर ट्रैकर'!$C$4:C65,'स्कोर ट्रैकर'!C65) -> 0
B95: 63 | C95: ='स्कोर ट्रैकर'!C66&COUNTIF('स्कोर ट्रैकर'!$C$4:C66,'स्कोर ट्रैकर'!C66) -> 0
B96: 64 | C96: ='स्कोर ट्रैकर'!C67&COUNTIF('स्कोर ट्रैकर'!$C$4:C67,'स्कोर ट्रैकर'!C67) -> 0
B97: 65 | C97: ='स्कोर ट्रैकर'!C68&COUNTIF('स्कोर ट्रैकर'!$C$4:C68,'स्कोर ट्रैकर'!C68) -> 0
B98: 66 | C98: ='स्कोर ट्रैकर'!C69&COUNTIF('स्कोर ट्रैकर'!$C$4:C69,'स्कोर ट्रैकर'!C69) -> 0
B99: 67 | C99: ='स्कोर ट्रैकर'!C70&COUNTIF('स्कोर ट्रैकर'!$C$4:C70,'स्कोर ट्रैकर'!C70) -> 0
B100: 68 | C100: ='स्कोर ट्रैकर'!C71&COUNTIF('स्कोर ट्रैकर'!$C$4:C71,'स्कोर ट्रैकर'!C71) -> 0
B101: 69 | C101: ='स्कोर ट्रैकर'!C72&COUNTIF('स्कोर ट्रैकर'!$C$4:C72,'स्कोर ट्रैकर'!C72) -> 0
B102: 70 | C102: ='स्कोर ट्रैकर'!C73&COUNTIF('स्कोर ट्रैकर'!$C$4:C73,'स्कोर ट्रैकर'!C73) -> 0
B103: 71 | C103: ='स्कोर ट्रैकर'!C74&COUNTIF('स्कोर ट्रैकर'!$C$4:C74,'स्कोर ट्रैकर'!C74) -> 0
B104: 72 | C104: ='स्कोर ट्रैकर'!C75&COUNTIF('स्कोर ट्रैकर'!$C$4:C75,'स्कोर ट्रैकर'!C75) -> 0
B105: 73 | C105: ='स्कोर ट्रैकर'!C76&COUNTIF('स्कोर ट्रैकर'!$C$4:C76,'स्कोर ट्रैकर'!C76) -> 0
B106: 74 | C106: ='स्कोर ट्रैकर'!C77&COUNTIF('स्कोर ट्रैकर'!$C$4:C77,'स्कोर ट्रैकर'!C77) -> 0
B107: 75 | C107: ='स्कोर ट्रैकर'!C78&COUNTIF('स्कोर ट्रैकर'!$C$4:C78,'स्कोर ट्रैकर'!C78) -> 0
B108: 76 | C108: ='स्कोर ट्रैकर'!C79&COUNTIF('स्कोर ट्रैकर'!$C$4:C79,'स्कोर ट्रैकर'!C79) -> 0
B109: 77 | C109: ='स्कोर ट्रैकर'!C80&COUNTIF('स्कोर ट्रैकर'!$C$4:C80,'स्कोर ट्रैकर'!C80) -> 0
B110: 78 | C110: ='स्कोर ट्रैकर'!C81&COUNTIF('स्कोर ट्रैकर'!$C$4:C81,'स्कोर ट्रैकर'!C81) -> 0
B111: 79 | C111: ='स्कोर ट्रैकर'!C82&COUNTIF('स्कोर ट्रैकर'!$C$4:C82,'स्कोर ट्रैकर'!C82) -> 0
B112: 80 | C112: ='स्कोर ट्रैकर'!C83&COUNTIF('स्कोर ट्रैकर'!$C$4:C83,'स्कोर ट्रैकर'!C83) -> 0
B113: 81 | C113: ='स्कोर ट्रैकर'!C84&COUNTIF('स्कोर ट्रैकर'!$C$4:C84,'स्कोर ट्रैकर'!C84) -> 0
B114: 82 | C114: ='स्कोर ट्रैकर'!C85&COUNTIF('स्कोर ट्रैकर'!$C$4:C85,'स्कोर ट्रैकर'!C85) -> 0
B115: 83 | C115: ='स्कोर ट्रैकर'!C86&COUNTIF('स्कोर ट्रैकर'!$C$4:C86,'स्कोर ट्रैकर'!C86) -> 0
B116: 84 | C116: ='स्कोर ट्रैकर'!C87&COUNTIF('स्कोर ट्रैकर'!$C$4:C87,'स्कोर ट्रैकर'!C87) -> 0
B117: 85 | C117: ='स्कोर ट्रैकर'!C88&COUNTIF('स्कोर ट्रैकर'!$C$4:C88,'स्कोर ट्रैकर'!C88) -> 0
B118: 86 | C118: ='स्कोर ट्रैकर'!C89&COUNTIF('स्कोर ट्रैकर'!$C$4:C89,'स्कोर ट्रैकर'!C89) -> 0
B119: 87 | C119: ='स्कोर ट्रैकर'!C90&COUNTIF('स्कोर ट्रैकर'!$C$4:C90,'स्कोर ट्रैकर'!C90) -> 0
B120: 88 | C120: ='स्कोर ट्रैकर'!C91&COUNTIF('स्कोर ट्रैकर'!$C$4:C91,'स्कोर ट्रैकर'!C91) -> 0
B121: 89 | C121: ='स्कोर ट्रैकर'!C92&COUNTIF('स्कोर ट्रैकर'!$C$4:C92,'स्कोर ट्रैकर'!C92) -> 0
B122: 90 | C122: ='स्कोर ट्रैकर'!C93&COUNTIF('स्कोर ट्रैकर'!$C$4:C93,'स्कोर ट्रैकर'!C93) -> 0
B123: 91 | C123: ='स्कोर ट्रैकर'!C94&COUNTIF('स्कोर ट्रैकर'!$C$4:C94,'स्कोर ट्रैकर'!C94) -> 0
B124: 92 | C124: ='स्कोर ट्रैकर'!C95&COUNTIF('स्कोर ट्रैकर'!$C$4:C95,'स्कोर ट्रैकर'!C95) -> 0
B125: 93 | C125: ='स्कोर ट्रैकर'!C96&COUNTIF('स्कोर ट्रैकर'!$C$4:C96,'स्कोर ट्रैकर'!C96) -> 0
B126: 94 | C126: ='स्कोर ट्रैकर'!C97&COUNTIF('स्कोर ट्रैकर'!$C$4:C97,'स्कोर ट्रैकर'!C97) -> 0
B127: 95 | C127: ='स्कोर ट्रैकर'!C98&COUNTIF('स्कोर ट्रैकर'!$C$4:C98,'स्कोर ट्रैकर'!C98) -> 0
B128: 96 | C128: ='स्कोर ट्रैकर'!C99&COUNTIF('स्कोर ट्रैकर'!$C$4:C99,'स्कोर ट्रैकर'!C99) -> 0
B129: 97 | C129: ='स्कोर ट्रैकर'!C100&COUNTIF('स्कोर ट्रैकर'!$C$4:C100,'स्कोर ट्रैकर'!C100) -> 0
B130: 98 | C130: ='स्कोर ट्रैकर'!C101&COUNTIF('स्कोर ट्रैकर'!$C$4:C101,'स्कोर ट्रैकर'!C101) -> 0
B131: 99 | C131: ='स्कोर ट्रैकर'!C102&COUNTIF('स्कोर ट्रैकर'!$C$4:C102,'स्कोर ट्रैकर'!C102) -> 0
B132: 100 | C132: ='स्कोर ट्रैकर'!C103&COUNTIF('स्कोर ट्रैकर'!$C$4:C103,'स्कोर ट्रैकर'!C103) -> 0
B133: 101 | C133: ='स्कोर ट्रैकर'!C104&COUNTIF('स्कोर ट्रैकर'!$C$4:C104,'स्कोर ट्रैकर'!C104) -> 0
B134: 102 | C134: ='स्कोर ट्रैकर'!C105&COUNTIF('स्कोर ट्रैकर'!$C$4:C105,'स्कोर ट्रैकर'!C105) -> 0
B135: 103 | C135: ='स्कोर ट्रैकर'!C106&COUNTIF('स्कोर ट्रैकर'!$C$4:C106,'स्कोर ट्रैकर'!C106) -> 0
B136: 104 | C136: ='स्कोर ट्रैकर'!C107&COUNTIF('स्कोर ट्रैकर'!$C$4:C107,'स्कोर ट्रैकर'!C107) -> 0
B137: 105 | C137: ='स्कोर ट्रैकर'!C108&COUNTIF('स्कोर ट्रैकर'!$C$4:C108,'स्कोर ट्रैकर'!C108) -> 0
B138: 106 | C138: ='स्कोर ट्रैकर'!C109&COUNTIF('स्कोर ट्रैकर'!$C$4:C109,'स्कोर ट्रैकर'!C109) -> 0
B139: 107 | C139: ='स्कोर ट्रैकर'!C110&COUNTIF('स्कोर ट्रैकर'!$C$4:C110,'स्कोर ट्रैकर'!C110) -> 0
B140: 108 | C140: ='स्कोर ट्रैकर'!C111&COUNTIF('स्कोर ट्रैकर'!$C$4:C111,'स्कोर ट्रैकर'!C111) -> 0
B141: 109 | C141: ='स्कोर ट्रैकर'!C112&COUNTIF('स्कोर ट्रैकर'!$C$4:C112,'स्कोर ट्रैकर'!C112) -> 0
B142: 110 | C142: ='स्कोर ट्रैकर'!C113&COUNTIF('स्कोर ट्रैकर'!$C$4:C113,'स्कोर ट्रैकर'!C113) -> 0
B143: 111 | C143: ='स्कोर ट्रैकर'!C114&COUNTIF('स्कोर ट्रैकर'!$C$4:C114,'स्कोर ट्रैकर'!C114) -> 0
B144: 112 | C144: ='स्कोर ट्रैकर'!C115&COUNTIF('स्कोर ट्रैकर'!$C$4:C115,'स्कोर ट्रैकर'!C115) -> 0
B145: 113 | C145: ='स्कोर ट्रैकर'!C116&COUNTIF('स्कोर ट्रैकर'!$C$4:C116,'स्कोर ट्रैकर'!C116) -> 0
B146: 114 | C146: ='स्कोर ट्रैकर'!C117&COUNTIF('स्कोर ट्रैकर'!$C$4:C117,'स्कोर ट्रैकर'!C117) -> 0
B147: 115 | C147: ='स्कोर ट्रैकर'!C118&COUNTIF('स्कोर ट्रैकर'!$C$4:C118,'स्कोर ट्रैकर'!C118) -> 0
B148: 116 | C148: ='स्कोर ट्रैकर'!C119&COUNTIF('स्कोर ट्रैकर'!$C$4:C119,'स्कोर ट्रैकर'!C119) -> 0
B149: 117 | C149: ='स्कोर ट्रैकर'!C120&COUNTIF('स्कोर ट्रैकर'!$C$4:C120,'स्कोर ट्रैकर'!C120) -> 0
B150: 118 | C150: ='स्कोर ट्रैकर'!C121&COUNTIF('स्कोर ट्रैकर'!$C$4:C121,'स्कोर ट्रैकर'!C121) -> 0
B151: 119 | C151: ='स्कोर ट्रैकर'!C122&COUNTIF('स्कोर ट्रैकर'!$C$4:C122,'स्कोर ट्रैकर'!C122) -> 0
B152: 120 | C152: ='स्कोर ट्रैकर'!C123&COUNTIF('स्कोर ट्रैकर'!$C$4:C123,'स्कोर ट्रैकर'!C123) -> 0
B153: 121 | C153: ='स्कोर ट्रैकर'!C124&COUNTIF('स्कोर ट्रैकर'!$C$4:C124,'स्कोर ट्रैकर'!C124) -> 0
B154: 122 | C154: ='स्कोर ट्रैकर'!C125&COUNTIF('स्कोर ट्रैकर'!$C$4:C125,'स्कोर ट्रैकर'!C125) -> 0
B155: 123 | C155: ='स्कोर ट्रैकर'!C126&COUNTIF('स्कोर ट्रैकर'!$C$4:C126,'स्कोर ट्रैकर'!C126) -> 0
B156: 124 | C156: ='स्कोर ट्रैकर'!C127&COUNTIF('स्कोर ट्रैकर'!$C$4:C127,'स्कोर ट्रैकर'!C127) -> 0
B157: 125 | C157: ='स्कोर ट्रैकर'!C128&COUNTIF('स्कोर ट्रैकर'!$C$4:C128,'स्कोर ट्रैकर'!C128) -> 0
B158: 126 | C158: ='स्कोर ट्रैकर'!C129&COUNTIF('स्कोर ट्रैकर'!$C$4:C129,'स्कोर ट्रैकर'!C129) -> 0
B159: 127 | C159: ='स्कोर ट्रैकर'!C130&COUNTIF('स्कोर ट्रैकर'!$C$4:C130,'स्कोर ट्रैकर'!C130) -> 0
B160: 128 | C160: ='स्कोर ट्रैकर'!C131&COUNTIF('स्कोर ट्रैकर'!$C$4:C131,'स्कोर ट्रैकर'!C131) -> 0
B161: 129 | C161: ='स्कोर ट्रैकर'!C132&COUNTIF('स्कोर ट्रैकर'!$C$4:C132,'स्कोर ट्रैकर'!C132) -> 0
B162: 130 | C162: ='स्कोर ट्रैकर'!C133&COUNTIF('स्कोर ट्रैकर'!$C$4:C133,'स्कोर ट्रैकर'!C133) -> 0
B163: 131 | C163: ='स्कोर ट्रैकर'!C134&COUNTIF('स्कोर ट्रैकर'!$C$4:C134,'स्कोर ट्रैकर'!C134) -> 0
B164: 132 | C164: ='स्कोर ट्रैकर'!C135&COUNTIF('स्कोर ट्रैकर'!$C$4:C135,'स्कोर ट्रैकर'!C135) -> 0
B165: 133 | C165: ='स्कोर ट्रैकर'!C136&COUNTIF('स्कोर ट्रैकर'!$C$4:C136,'स्कोर ट्रैकर'!C136) -> 0
B166: 134 | C166: ='स्कोर ट्रैकर'!C137&COUNTIF('स्कोर ट्रैकर'!$C$4:C137,'स्कोर ट्रैकर'!C137) -> 0
B167: 135 | C167: ='स्कोर ट्रैकर'!C138&COUNTIF('स्कोर ट्रैकर'!$C$4:C138,'स्कोर ट्रैकर'!C138) -> 0
B168: 136 | C168: ='स्कोर ट्रैकर'!C139&COUNTIF('स्कोर ट्रैकर'!$C$4:C139,'स्कोर ट्रैकर'!C139) -> 0
B169: 137 | C169: ='स्कोर ट्रैकर'!C140&COUNTIF('स्कोर ट्रैकर'!$C$4:C140,'स्कोर ट्रैकर'!C140) -> 0
B170: 138 | C170: ='स्कोर ट्रैकर'!C141&COUNTIF('स्कोर ट्रैकर'!$C$4:C141,'स्कोर ट्रैकर'!C141) -> 0
B171: 139 | C171: ='स्कोर ट्रैकर'!C142&COUNTIF('स्कोर ट्रैकर'!$C$4:C142,'स्कोर ट्रैकर'!C142) -> 0
B172: 140 | C172: ='स्कोर ट्रैकर'!C143&COUNTIF('स्कोर ट्रैकर'!$C$4:C143,'स्कोर ट्रैकर'!C143) -> 0
B173: 141 | C173: ='स्कोर ट्रैकर'!C144&COUNTIF('स्कोर ट्रैकर'!$C$4:C144,'स्कोर ट्रैकर'!C144) -> 0
B174: 142 | C174: ='स्कोर ट्रैकर'!C145&COUNTIF('स्कोर ट्रैकर'!$C$4:C145,'स्कोर ट्रैकर'!C145) -> 0
B175: 143 | C175: ='स्कोर ट्रैकर'!C146&COUNTIF('स्कोर ट्रैकर'!$C$4:C146,'स्कोर ट्रैकर'!C146) -> 0
B176: 144 | C176: ='स्कोर ट्रैकर'!C147&COUNTIF('स्कोर ट्रैकर'!$C$4:C147,'स्कोर ट्रैकर'!C147) -> 0
B177: 145 | C177: ='स्कोर ट्रैकर'!C148&COUNTIF('स्कोर ट्रैकर'!$C$4:C148,'स्कोर ट्रैकर'!C148) -> 0
B178: 146 | C178: ='स्कोर ट्रैकर'!C149&COUNTIF('स्कोर ट्रैकर'!$C$4:C149,'स्कोर ट्रैकर'!C149) -> 0
B179: 147 | C179: ='स्कोर ट्रैकर'!C150&COUNTIF('स्कोर ट्रैकर'!$C$4:C150,'स्कोर ट्रैकर'!C150) -> 0
B180: 148 | C180: ='स्कोर ट्रैकर'!C151&COUNTIF('स्कोर ट्रैकर'!$C$4:C151,'स्कोर ट्रैकर'!C151) -> 0
B181: 149 | C181: ='स्कोर ट्रैकर'!C152&COUNTIF('स्कोर ट्रैकर'!$C$4:C152,'स्कोर ट्रैकर'!C152) -> 0
B182: 150 | C182: ='स्कोर ट्रैकर'!C153&COUNTIF('स्कोर ट्रैकर'!$C$4:C153,'स्कोर ट्रैकर'!C153) -> 0
B183: 151 | C183: ='स्कोर ट्रैकर'!C154&COUNTIF('स्कोर ट्रैकर'!$C$4:C154,'स्कोर ट्रैकर'!C154) -> 0
B184: 152 | C184: ='स्कोर ट्रैकर'!C155&COUNTIF('स्कोर ट्रैकर'!$C$4:C155,'स्कोर ट्रैकर'!C155) -> 0
B185: 153 | C185: ='स्कोर ट्रैकर'!C156&COUNTIF('स्कोर ट्रैकर'!$C$4:C156,'स्कोर ट्रैकर'!C156) -> 0
B186: 154 | C186: ='स्कोर ट्रैकर'!C157&COUNTIF('स्कोर ट्रैकर'!$C$4:C157,'स्कोर ट्रैकर'!C157) -> 0
B187: 155 | C187: ='स्कोर ट्रैकर'!C158&COUNTIF('स्कोर ट्रैकर'!$C$4:C158,'स्कोर ट्रैकर'!C158) -> 0
B188: 156 | C188: ='स्कोर ट्रैकर'!C159&COUNTIF('स्कोर ट्रैकर'!$C$4:C159,'स्कोर ट्रैकर'!C159) -> 0
B189: 157 | C189: ='स्कोर ट्रैकर'!C160&COUNTIF('स्कोर ट्रैकर'!$C$4:C160,'स्कोर ट्रैकर'!C160) -> 0
B190: 158 | C190: ='स्कोर ट्रैकर'!C161&COUNTIF('स्कोर ट्रैकर'!$C$4:C161,'स्कोर ट्रैकर'!C161) -> 0
B191: 159 | C191: ='स्कोर ट्रैकर'!C162&COUNTIF('स्कोर ट्रैकर'!$C$4:C162,'स्कोर ट्रैकर'!C162) -> 0
B192: 160 | C192: ='स्कोर ट्रैकर'!C163&COUNTIF('स्कोर ट्रैकर'!$C$4:C163,'स्कोर ट्रैकर'!C163) -> 0
B193: 161 | C193: ='स्कोर ट्रैकर'!C164&COUNTIF('स्कोर ट्रैकर'!$C$4:C164,'स्कोर ट्रैकर'!C164) -> 0
B194: 162 | C194: ='स्कोर ट्रैकर'!C165&COUNTIF('स्कोर ट्रैकर'!$C$4:C165,'स्कोर ट्रैकर'!C165) -> 0
B195: 163 | C195: ='स्कोर ट्रैकर'!C166&COUNTIF('स्कोर ट्रैकर'!$C$4:C166,'स्कोर ट्रैकर'!C166) -> 0
B196: 164 | C196: ='स्कोर ट्रैकर'!C167&COUNTIF('स्कोर ट्रैकर'!$C$4:C167,'स्कोर ट्रैकर'!C167) -> 0
B197: 165 | C197: ='स्कोर ट्रैकर'!C168&COUNTIF('स्कोर ट्रैकर'!$C$4:C168,'स्कोर ट्रैकर'!C168) -> 0
B198: 166 | C198: ='स्कोर ट्रैकर'!C169&COUNTIF('स्कोर ट्रैकर'!$C$4:C169,'स्कोर ट्रैकर'!C169) -> 0
B199: 167 | C199: ='स्कोर ट्रैकर'!C170&COUNTIF('स्कोर ट्रैकर'!$C$4:C170,'स्कोर ट्रैकर'!C170) -> 0
B200: 168 | C200: ='स्कोर ट्रैकर'!C171&COUNTIF('स्कोर ट्रैकर'!$C$4:C171,'स्कोर ट्रैकर'!C171) -> 0
B201: 169 | C201: ='स्कोर ट्रैकर'!C172&COUNTIF('स्कोर ट्रैकर'!$C$4:C172,'स्कोर ट्रैकर'!C172) -> 0
B202: 170 | C202: ='स्कोर ट्रैकर'!C173&COUNTIF('स्कोर ट्रैकर'!$C$4:C173,'स्कोर ट्रैकर'!C173) -> 0
B203: 171 | C203: ='स्कोर ट्रैकर'!C174&COUNTIF('स्कोर ट्रैकर'!$C$4:C174,'स्कोर ट्रैकर'!C174) -> 0
... 454 more rows
